bitfinex/quotes_SOLUSD_20250118
["timestamp","ask_amount","ask_price","bid_price","bid_amount"]
[1737239161172,19.17339295,254.55,254.44,19.17339295]
[1737239161773,19.17339295,254.57,254.46,19.17339295]
[1737239162270,3.82,254.64,254.49,23.776884]
[1737239162271,19.17339295,254.59,254.49,23.776884]
[1737239162483,19.17339295,254.65,254.54,42.95027695]
[1737239162683,19.17339295,254.65,254.55,0.58913879]
[1737239163686,19.17339295,254.67,254.58,23.776884]
[1737239163890,19.17339295,254.69,254.6,42.95027695]
[1737239164101,19.17339295,254.71,254.62,23.776884]
[1737239165277,19.17339295,254.71,254.6,19.17339295]
[1737239165480,19.17339295,254.69,254.58,19.17339295]
[1737239165793,19.17339295,254.69,254.59,23.776884]
[1737239167892,8.8145201,254.69,254.59,23.776884]
[1737239168280,8.8145201,254.69,254.58,23.776884]
[1737239168479,1.5428,254.76,254.66,19.17339295]
[1737239168480,19.17339295,254.76,254.66,19.17339295]
[1737239168684,19.17339295,254.76,254.62,23.776884]
[1737239168685,19.17339295,254.8,254.71,23.776884]
[1737239168894,19.17339295,254.8,254.72,0.58882646]
[1737239169399,19.17339295,254.8,254.71,24.36567326]
[1737239169607,19.17339295,254.8,254.71,23.776884]
[1737239169781,19.17339295,254.8,254.71,24.36571264]
[1737239170411,19.17339295,254.84,254.74,19.17339295]
[1737239170693,19.17339295,254.86,254.77,23.776884]
[1737239171000,19.17339295,254.88,254.78,19.17339295]
[1737239171179,19.17339295,254.88,254.8,23.776884]
[1737239173193,19.17339295,254.9,254.8,42.95027695]
[1737239173392,10.0525,254.94,254.8,42.95027695]
[1737239173598,19.17339295,254.91,254.8,42.95027695]
[1737239173899,0.063,254.94,254.84,19.17339295]
[1737239174486,0.063,254.94,254.86,19.17339295]
[1737239174697,0.063,254.94,254.87,24.36540549]
[1737239174898,0.063,254.94,254.87,23.776884]
[1737239175080,0.063,254.94,254.87,24.36534292]
[1737239175286,0.063,254.94,254.87,23.776884]
[1737239175694,0.063,254.94,254.88,19.17339295]
[1737239177207,0.063,254.94,254.89,24.36534609]
[1737239177498,19.17339295,254.93,254.74,0.58836107]
[1737239177701,19.17339295,254.9,254.8,19.17339295]
[1737239177913,19.17339295,254.9,254.81,0.5885787]
[1737239178206,19.17339295,254.9,254.81,23.776884]
[1737239178786,19.17339295,254.92,254.81,23.776884]
[1737239179107,19.17339295,254.92,254.81,24.36548017]
[1737239179994,19.17339295,254.92,254.82,19.17339295]
[1737239180306,19.17339295,254.92,254.85,20.0]
[1737239180499,19.23639295,254.94,254.86,23.776884]
[1737239181290,0.063,254.94,254.88,23.776884]
[1737239181792,0.063,254.94,254.91,23.776884]
[1737239182103,0.063,254.98,254.95,5.0]
[1737239182306,0.063,254.98,254.97,67.95027695]
[1737239183307,19.17339295,255.16,254.97,19.17339295]
[1737239183612,19.17339295,255.07,254.98,0.58803331]
[1737239183908,19.17339295,255.04,254.93,19.17339295]
[1737239184084,19.17339295,255.04,254.94,0.58828389]
[1737239184290,19.17339295,255.02,254.91,19.17339295]
[1737239184503,19.17339295,255.02,254.92,0.5883506]
[1737239185201,19.17339295,255.02,254.92,23.776884]
[1737239185800,19.17339295,255.02,254.91,19.17339295]
[1737239186307,19.17339295,255.02,254.92,23.776884]
[1737239187286,31.22282807,255.03,254.92,54.99971207]
[1737239188209,31.22282807,255.01,254.91,23.776884]
[1737239188408,31.22282807,255.01,254.91,24.36523084]
[1737239190410,31.22282807,255.01,254.82,31.81117357]
[1737239190411,31.22282807,254.93,254.82,31.81117357]
[1737239190602,31.22282807,254.91,254.82,31.81117357]
[1737239190807,31.22282807,254.91,254.83,23.776884]
[1737239191008,31.22282807,254.91,254.85,20.0]
[1737239191201,31.22282807,254.91,254.84,0.58848791]
[1737239191402,31.22282807,254.91,254.85,23.776884]
[1737239191711,31.22282807,254.91,254.84,0.58848791]
[1737239191900,31.22282807,254.87,254.81,6.1103]
[1737239192106,31.22282807,254.89,254.82,0.58862073]
[1737239192930,31.22282807,254.89,254.83,23.776884]
[1737239193115,31.22282807,254.93,254.85,23.776884]
[1737239193323,31.22282807,254.93,254.85,43.776884]
[1737239195604,31.22282807,254.95,254.85,43.776884]
[1737239196217,31.22282807,254.95,254.85,23.776884]
[1737239196418,31.22282807,254.97,254.88,20.0]
[1737239196619,31.22282807,254.99,254.89,24.36530014]
[1737239196802,31.22282807,254.99,254.89,23.776884]
[1737239201226,0.063,254.99,254.94,20.0]
[1737239201417,0.063,254.99,254.92,31.81116667]
[1737239201814,0.063,254.99,254.95,20.0]
[1737239202517,0.063,254.99,254.97,23.776884]
[1737239202712,0.063,254.99,254.97,24.36508499]
[1737239202915,0.063,254.99,254.98,54.99971207]
[1737239204711,0.063,254.99,254.98,55.58784409]
[1737239208328,0.063,254.99,254.96,31.22282807]
[1737239208531,3.9848,254.99,254.89,31.22282807]
[1737239208723,31.22282807,254.98,254.89,31.22282807]
[1737239208926,31.22282807,254.98,254.87,31.22282807]
[1737239209123,31.22282807,254.98,254.88,30.0]
[1737239209317,23.2050375,254.99,254.89,19.2202375]
[1737239209832,0.063,254.99,254.93,19.2202375]
[1737239210732,0.063,254.99,254.94,23.776884]
[1737239211310,0.063,254.99,254.93,19.2202375]
[1737239212840,0.063,254.99,254.93,19.2502375]
[1737239213043,0.063,254.99,254.94,23.776884]
[1737239213219,0.063,254.99,254.93,19.2502375]
[1737239213220,0.063,254.99,254.95,19.2202375]
[1737239218916,19.2202375,254.96,254.93,0.03]
[1737239219445,3.9848,254.99,254.93,0.03]
[1737239219446,19.2202375,254.98,254.93,0.03]
[1737239220338,19.2202375,254.96,254.93,0.03]
[1737239221038,23.1421375,254.98,254.93,0.03]
[1737239221341,19.2202375,254.98,254.93,0.03]
[1737239221539,0.063,254.99,254.93,0.03]
[1737239223145,0.063,254.99,254.98,19.2202375]
[1737239223433,0.063,254.99,254.98,42.9971215]
[1737239224024,0.063,255.02,255.01,43.776884]
[1737239224225,0.063,255.02,255.01,63.58505635]
[1737239224420,0.063,255.02,255.01,65.16765635]
[1737239224839,0.063,255.2,255.06,23.776884]
[1737239225027,0.063,255.2,255.13,19.2202375]
[1737239227343,3.9815,255.2,255.11,19.2202375]
[1737239229050,0.063,255.2,255.13,19.2202375]
[1737239229536,0.063,255.2,255.15,19.2202375]
[1737239230243,0.063,255.2,255.16,23.776884]
[1737239235457,3.9815,255.2,255.11,19.2202375]
[1737239237153,0.063,255.2,255.11,19.2202375]
[1737239239233,19.2202375,255.19,255.08,19.2202375]
[1737239239567,11.9962611,255.17,255.06,11.9962611]
[1737239239849,11.9962611,255.17,255.03,0.58806562]
[1737239240052,11.9962611,255.17,255.06,11.9962611]
[1737239241031,11.9962611,255.17,254.99,20.0]
[1737239241237,3.9191,255.16,255.05,11.9962611]
[1737239243054,11.9962611,255.12,255.03,11.9962611]
[1737239243430,11.9962611,255.1,255.01,11.9962611]
[1737239243640,11.9962611,255.08,254.96,0.03]
[1737239243841,11.9962611,255.06,254.97,11.9962611]
[1737239245061,3.9207,255.05,254.97,11.9962611]
[1737239247033,11.9962611,255.04,254.96,0.03]
[1737239248331,3.9211,255.03,254.96,0.03]
[1737239248757,20.0,255.01,254.96,0.03]
[1737239249541,23.9214,255.01,254.96,0.03]
[1737239250148,3.9207,255.06,254.96,0.03]
[1737239250444,11.9962611,255.04,254.96,0.03]
[1737239251260,20.0,255.04,254.96,0.03]
[1737239251461,3.9209,255.04,254.96,0.03]
[1737239255760,11.9962611,255.03,254.96,0.03]
[1737239256943,15.9173611,255.03,254.96,0.03]
[1737239266072,3.9211,255.03,254.96,0.03]
[1737239267564,12.0592611,255.04,254.96,23.806884]
[1737239267760,0.063,255.04,254.98,23.776884]
[1737239268368,0.063,255.04,255.01,11.9962611]
[1737239268571,0.063,255.04,255.02,24.3649668]
[1737239269571,0.063,255.04,255.03,35.7731451]
[1737239269955,0.063,255.04,254.96,0.03]
[1737239269956,20.0,255.02,254.96,0.03]
[1737239271047,23.9213,255.02,254.96,0.03]
[1737239271664,3.9213,255.02,254.96,0.03]
[1737239271843,0.063,255.04,254.99,11.9962611]
[1737239273572,0.063,255.04,255.03,11.9962611]
[1737239273757,0.063,255.04,255.03,35.7731451]
[1737239275064,0.063,255.04,255.03,36.36107858]
[1737239275266,0.063,255.2,255.07,20.0]
[1737239275569,0.063,255.2,255.13,11.9962611]
[1737239279871,0.063,255.2,255.15,11.9962611]
[1737239280076,0.063,255.2,255.17,11.9962611]
[1737239284674,0.063,255.2,255.15,11.9962611]
[1737239287459,0.063,255.2,255.17,11.9962611]
[1737239290867,19.05794579,255.61,255.6,10.0]
[1737239291072,93.97365262,255.8,255.64,28.55697678]
[1737239291284,93.36835262,255.8,255.79,33.9925222]
[1737239291488,11.9962611,256.07,255.84,5.0]
[1737239291691,11.9962611,256.06,255.84,24.57851801]
[1737239291987,11.9962611,256.04,255.84,48.35540201]
[1737239292166,11.9962611,256.05,255.84,63.98713701]
[1737239292679,11.9962611,256.03,255.84,96.37923693]
[1737239292983,2.024134,256.09,255.92,19.99932873]
[1737239293189,11.9962611,255.96,255.94,5.0]
[1737239293485,6.25784308,256.14,255.95,27.41017096]
[1737239293784,4.56,256.17,255.97,19.08788686]
[1737239293981,19.07147324,255.98,255.97,19.08788686]
[1737239294291,20.0,256.15,255.96,30.46427864]
[1737239294461,19.07147324,255.97,255.96,30.46427864]
[1737239294982,19.07147324,255.97,255.96,36.90475765]
[1737239295388,19.07147324,255.97,255.96,56.89680721]
[1737239295564,19.07147324,255.97,255.96,36.90475765]
[1737239295966,42.84835724,255.97,255.96,36.90475765]
[1737239296174,23.776884,255.97,255.96,36.90475765]
[1737239296372,42.84835724,255.97,255.96,56.89680721]
[1737239296670,19.07147324,255.97,255.96,36.90475765]
[1737239297180,19.07147324,255.97,255.88,5.58612603]
[1737239297181,38.14294648,255.97,255.88,5.58612603]
[1737239297485,19.07147324,255.97,255.89,0.31450617]
[1737239297677,19.07147324,255.97,255.84,31.83510523]
[1737239297678,20.0,255.94,255.84,31.83510523]
[1737239298012,19.07147324,255.85,255.84,31.83510523]
[1737239298289,20.0,255.82,255.77,5.0]
[1737239298464,19.07147324,255.78,255.77,5.0]
[1737239299092,20.0,255.75,255.72,5.0]
[1737239299289,19.07147324,255.73,255.71,5.0]
[1737239299692,20.0,255.7,255.65,5.0]
[1737239299871,19.07147324,255.67,255.64,5.0]
[1737239300072,5.52621747,255.88,255.7,5.0]
[1737239300270,19.07147324,255.73,255.68,5.0]
[1737239300592,19.07147324,255.73,255.7,5.0]
[1737239300886,19.07147324,255.73,255.7,10.0]
[1737239301195,19.07147324,255.75,255.72,16.66617424]
[1737239301364,19.07147324,255.75,255.74,5.0]
[1737239301568,20.0,255.73,255.72,11.66617424]
[1737239301795,20.0,255.73,255.72,16.66617424]
[1737239302175,20.0,255.73,255.72,5.0]
[1737239302573,20.0,255.73,255.7,5.0]
[1737239305994,20.0,255.74,255.7,10.0]
[1737239306190,20.0,255.74,255.7,5.0]
[1737239310382,22.98127324,255.77,255.7,5.0]
[1737239310603,22.98127324,255.77,255.71,5.0]
[1737239311101,20.0,255.69,255.65,30.86103142]
[1737239311293,19.07147324,255.67,255.65,30.86103142]
[1737239312000,20.0,255.64,255.6,10.0]
[1737239312703,19.07147324,255.65,255.6,10.0]
[1737239313016,19.07147324,255.73,255.68,10.0]
[1737239313199,19.07147324,255.75,255.69,5.0]
[1737239313508,19.07147324,255.75,255.68,5.0]
[1737239313707,19.07147324,255.75,255.7,5.0]
[1737239313898,19.07147324,255.75,255.64,19.07147324]
[1737239314214,22.98147324,255.75,255.64,19.07147324]
[1737239314406,22.98147324,255.75,255.64,19.65814132]
[1737239314709,22.98147324,255.75,255.68,0.063]
[1737239315200,11.77,255.89,255.7,19.07147324]
[1737239315407,19.07147324,255.82,255.7,19.07147324]
[1737239315705,3.81289139,255.73,255.72,19.07147324]
[1737239317004,3.81289139,255.65,255.6,19.07147324]
[1737239317193,3.81289139,255.65,255.61,0.29375227]
[1737239317704,0.73340527,255.72,255.61,0.29375227]
[1737239317705,3.81289139,255.62,255.61,0.29375227]
[1737239318015,3.81289139,255.6,255.57,19.07147324]
[1737239318200,3.81289139,255.6,255.55,19.07147324]
[1737239318396,3.81289139,255.6,255.51,4.20744967]
[1737239318397,0.03,256.16,256.0,5.0]
[1737239318594,0.03,256.16,256.14,19.07147324]
[1737239319108,0.03,256.16,256.03,3.9056]
[1737239319299,0.03,256.16,256.05,19.07147324]
[1737239319504,0.03,256.16,256.11,19.07147324]
[1737239319700,0.03,256.16,256.12,0.58548955]
[1737239319906,0.03,256.16,256.15,19.07147324]
[1737239320111,0.03,256.16,256.12,19.65696279]
[1737239320297,0.03,256.16,256.15,38.48329584]
[1737239320606,202.6259697,256.4,256.13,20.08113427]
[1737239320607,19.07147324,256.25,256.13,20.08113427]
[1737239320910,19.07147324,256.27,256.13,39.15260751]
[1737239321105,3.62924784,256.39,256.18,19.50468806]
[1737239321413,30.89985001,256.38,256.28,1.37075216]
[1737239321712,30.89985001,256.35,256.25,35.44235373]
[1737239322819,30.89985001,256.33,256.25,36.81310589]
[1737239322998,30.89985001,256.33,256.25,35.44235373]
[1737239323307,17.33608436,256.33,256.25,35.44235373]
[1737239324903,17.33608436,256.33,256.25,36.81310589]
[1737239325105,17.33608436,256.33,256.29,1.37075216]
[1737239325414,17.33608436,256.33,256.27,1.37075216]
[1737239325909,17.33608436,256.33,256.26,1.37075216]
[1737239326117,17.33608436,256.33,256.28,1.37075216]
[1737239326305,17.33608436,256.33,256.26,0.58514384]
[1737239326512,17.33608436,256.33,256.26,1.955896]
[1737239326713,17.36608436,256.33,256.26,0.58514384]
[1737239327011,0.03,256.33,256.26,0.58514384]
[1737239327201,30.89985001,256.27,256.22,1.37075216]
[1737239327402,30.89985001,256.25,256.23,30.0]
[1737239327913,30.89985001,256.24,256.23,30.0]
[1737239328215,30.89985001,256.24,256.17,1.95620317]
[1737239328412,30.89985001,256.19,256.15,1.37075216]
[1737239328719,30.89985001,256.21,256.15,1.37075216]
[1737239328918,30.89985001,256.21,256.11,23.776884]
[1737239329116,30.89985001,256.13,256.12,30.0]
[1737239329420,30.89985001,256.13,256.06,6.77466325]
[1737239329821,30.89985001,256.15,256.06,6.77466325]
[1737239330309,34.80345001,256.17,256.06,37.67451326]
[1737239331208,30.89985001,256.17,256.06,37.67451326]
[1737239331720,30.89985001,256.18,256.08,30.89985001]
[1737239331920,0.58547628,256.23,256.15,30.89985001]
[1737239332098,0.03,256.33,256.21,30.89985001]
[1737239332303,0.03,256.33,256.13,20.0]
[1737239332304,0.03,256.33,256.22,31.48508157]
[1737239332514,0.61547628,256.33,256.22,31.48508157]
[1737239333016,30.89985001,256.32,256.22,0.58523156]
[1737239333207,0.03,256.33,256.23,0.58532099]
[1737239333410,0.03,256.33,256.24,30.89985001]
[1737239333625,0.03,256.33,256.25,0.58524793]
[1737239334119,30.89985001,256.3,256.2,30.89985001]
[1737239334318,0.58547628,256.29,256.21,0.58535238]
[1737239334512,30.89985001,256.3,256.2,23.776884]
[1737239334701,11.90795501,256.3,256.21,0.58530503]
[1737239334907,30.89985001,256.27,256.16,30.89985001]
[1737239335123,0.58547628,256.26,256.17,0.58543512]
[1737239335627,30.89985001,256.18,256.09,0.58542475]
[1737239335923,30.89985001,256.14,256.02,30.89985001]
[1737239336101,30.89985001,256.14,256.03,0.58569954]
[1737239336302,3.9042,256.13,256.03,0.58569954]
[1737239336502,4.48967628,256.13,256.03,0.58569954]
[1737239336714,4.48967628,256.13,256.04,30.89985001]
[1737239336925,3.9042,256.13,256.05,0.58570621]
[1737239338403,3.9042,256.13,256.06,30.89985001]
[1737239338609,3.9042,256.13,256.07,0.58566145]
[1737239339108,3.9042,256.13,256.08,0.063]
[1737239340002,0.58547628,256.15,256.1,30.89985001]
[1737239340228,0.03,256.25,256.08,23.839884]
[1737239340229,0.61547628,256.25,256.14,30.39985001]
[1737239340522,0.61547628,256.25,256.15,0.58547457]
[1737239340900,3.9025,256.24,256.16,30.89985001]
[1737239341119,3.9025,256.24,256.15,0.58547457]
[1737239344322,34.80235001,256.24,256.15,0.58547457]
[1737239344508,34.80235001,256.24,256.13,0.58547364]
[1737239348128,0.03,256.25,256.17,30.89985001]
[1737239348318,3.9324,256.25,256.18,0.5853841]
[1737239348629,0.03,256.25,256.19,30.89985001]
[1737239348815,0.03,256.25,256.2,0.58531291]
[1737239351232,0.03,256.25,256.21,30.89985001]
[1737239351409,0.03,256.25,256.22,0.58529206]
[1737239353316,30.89985001,256.31,256.22,0.58529206]
[1737239353317,21.26659353,256.31,256.22,0.58529206]
[1737239354434,30.89985001,256.29,256.21,0.58529342]
[1737239354620,3.9016,256.3,256.22,0.58540943]
[1737239355137,0.58547628,256.29,256.19,30.89985001]
[1737239355320,0.58547628,256.29,256.2,0.58537182]
[1737239356219,3.9019,256.28,256.2,0.58537182]
[1737239357436,0.58547628,256.27,256.17,30.89985001]
[1737239357644,30.89985001,256.25,256.15,30.89985001]
[1737239357931,0.58547628,256.24,256.15,30.89985001]
[1737239358635,3.9027,256.23,256.15,30.89985001]
[1737239359441,3.9027,256.23,256.16,19.61581961]
[1737239360342,0.58547628,256.26,256.16,19.61581961]
[1737239360518,3.9024,256.25,256.16,19.61581961]
[1737239362439,3.9027,256.23,256.16,19.61581961]
[1737239365833,19.03032236,256.25,256.16,19.61581961]
[1737239366142,3.9025,256.24,256.16,19.61581961]
[1737239366520,19.03032236,256.2,256.13,0.063]
[1737239367627,0.58547628,256.19,256.13,0.063]
[1737239368039,3.9035,256.18,256.13,0.063]
[1737239368535,19.03032236,256.14,256.13,0.063]
[1737239369844,0.03,256.33,256.25,5.0]
[1737239370137,2.58304653,256.3,256.26,0.58500975]
[1737239370523,0.03,256.33,256.26,0.58500975]
[1737239371042,0.03,256.33,256.24,19.03032236]
[1737239371344,0.03,256.33,256.25,0.58520689]
[1737239372025,0.03,256.33,256.26,19.03032236]
[1737239372230,0.03,256.33,256.27,0.58514339]
[1737239372819,0.03,256.33,256.28,19.03032236]
[1737239373031,0.03,256.33,256.29,0.58508911]
[1737239374022,0.03,256.33,256.27,30.89586728]
[1737239374222,0.03,256.33,256.28,0.58512927]
[1737239374436,0.03,256.33,256.29,30.89586728]
[1737239374625,0.03,256.33,256.3,0.58508165]
[1737239375136,0.03,256.33,256.32,30.89586728]
[1737239376340,0.03,256.33,256.32,31.48090751]
[1737239381533,0.03,256.59,256.58,10.25900338]
[1737239381842,0.03,256.59,256.58,0.58428771]
[1737239382023,0.03,256.59,256.58,34.20137066]
[1737239382226,0.03,256.59,256.52,34.20137066]
[1737239382432,0.03,256.59,256.52,30.89586728]
[1737239382634,0.03,256.59,256.5,30.89586728]
[1737239382853,30.89586728,256.57,256.46,30.89586728]
[1737239383029,20.0,256.54,256.46,30.89586728]
[1737239383347,30.89586728,256.53,256.46,3.30550338]
[1737239383644,3.8983,256.52,256.46,3.30550338]
[1737239383847,3.8983,256.52,256.43,0.58482872]
[1737239384238,3.8983,256.52,256.47,5.0]
[1737239385648,30.89586728,256.53,256.47,5.0]
[1737239386037,30.89586728,256.49,256.43,5.0]
[1737239386349,30.89586728,256.47,256.43,5.0]
[1737239386530,30.89586728,256.49,256.43,5.0]
[1737239386729,30.89586728,256.54,256.49,5.0]
[1737239387033,0.03,256.59,256.58,5.0]
[1737239387435,0.03,256.59,256.58,36.48028283]
[1737239388251,0.03,256.59,256.58,5.0]
[1737239388434,0.03,256.59,256.58,35.89586728]
[1737239389630,0.03,256.59,256.58,36.48034179]
[1737239389833,0.03,256.59,256.53,5.58449154]
[1737239390142,0.03,256.59,256.52,30.89586728]
[1737239390445,0.03,256.59,256.5,35.89586728]
[1737239390652,30.92586728,256.59,256.5,5.0]
[1737239391436,3.8974,256.58,256.5,5.0]
[1737239391738,30.89586728,256.52,256.45,5.0]
[1737239391944,30.89586728,256.5,256.4,35.89586728]
[1737239392450,30.89586728,256.48,256.4,5.0]
[1737239393750,9.7458,256.52,256.4,5.0]
[1737239393958,30.89586728,256.5,256.43,5.0]
[1737239394440,30.89586728,256.5,256.41,5.0]
[1737239395143,30.89586728,256.5,256.39,30.89586728]
[1737239395455,3.8987,256.49,256.39,30.89586728]
[1737239395637,0.158,256.6,256.48,61.79173456]
[1737239395838,0.158,256.6,256.58,30.89586728]
[1737239396456,30.89586728,256.74,256.58,30.89586728]
[1737239396639,3.896,256.67,256.58,30.89586728]
[1737239397054,3.8956,256.7,256.58,30.89586728]
[1737239397235,20.0,256.69,256.58,30.89586728]
[1737239397438,3.8957,256.69,256.58,30.89586728]
[1737239397754,30.92586728,256.59,256.43,0.58447663]
[1737239397941,0.03,256.59,256.49,30.89586728]
[1737239398145,0.03,256.59,256.5,0.58461957]
[1737239398354,0.03,256.59,256.51,30.89586728]
[1737239398546,0.03,256.59,256.52,0.5845632]
[1737239398742,0.03,256.59,256.55,30.89586728]
[1737239398948,0.03,256.59,256.56,0.58449123]
[1737239400853,0.03,256.59,256.54,0.58453456]
[1737239401358,0.03,256.59,256.54,31.48040184]
[1737239401739,0.03,256.59,256.5,31.48042644]
[1737239403069,30.89586728,256.58,256.5,0.58455916]
[1737239403243,30.89586728,256.52,256.46,0.58468159]
[1737239403552,30.89586728,256.52,256.43,0.58479539]
[1737239403935,30.89586728,256.5,256.41,0.5848312]
[1737239404140,30.89586728,256.44,256.36,0.5848403]
[1737239404355,30.89586728,256.42,256.36,0.5848403]
[1737239404563,0.03,256.59,256.47,5.0]
[1737239404758,0.03,256.59,256.58,30.89586728]
[1737239404937,0.03,256.59,256.49,40.25806728]
[1737239404938,0.03,256.59,256.56,30.89586728]
[1737239405137,0.03,256.59,256.58,30.89586728]
[1737239405339,0.03,256.59,256.54,0.58448955]
[1737239405645,0.03,256.59,256.52,30.89586728]
[1737239405836,0.03,256.59,256.5,30.89586728]
[1737239406451,0.03,256.59,256.48,30.89586728]
[1737239407051,30.92586728,256.59,256.44,0.58475543]
[1737239407242,3.8974,256.58,256.47,30.89586728]
[1737239407447,30.89586728,256.57,256.45,30.89586728]
[1737239407744,13.6409,256.58,256.47,30.89586728]
[1737239408552,20.0,256.54,256.43,31.48065308]
[1737239408754,30.89586728,256.53,256.41,30.89586728]
[1737239409154,30.89586728,256.51,256.39,30.89586728]
[1737239411047,3.8986,256.5,256.39,30.89586728]
[1737239411272,3.8986,256.5,256.45,30.89586728]
[1737239411564,32.85976728,256.59,256.49,30.89586728]
[1737239411766,3.9273,256.59,256.51,30.89586728]
[1737239412152,3.9273,256.59,256.49,30.89586728]
[1737239412359,0.03,256.58,256.49,30.89586728]
[1737239412559,0.03,256.58,256.38,0.063]
[1737239412560,0.03,256.58,256.53,30.89586728]
[1737239413862,0.03,256.58,256.55,30.89586728]
[1737239414066,0.03,256.58,256.56,0.58457539]
[1737239414249,0.03,256.58,256.57,30.89586728]
[1737239414967,0.03,256.58,256.55,30.89586728]
[1737239415343,0.03,256.58,256.53,30.89586728]
[1737239416963,0.03,256.58,256.57,30.89586728]
[1737239418466,0.03,256.58,256.57,31.4803695]
[1737239419267,0.03,256.58,256.57,55.2572535]
[1737239420154,3.8946,256.76,256.58,27.674284]
[1737239420360,3.8946,256.76,256.65,30.89586728]
[1737239420656,3.8946,256.76,256.66,0.58432629]
[1737239420851,0.158,256.75,256.66,0.58432629]
[1737239421260,3.8949,256.74,256.66,0.58432629]
[1737239421459,3.8949,256.74,256.65,30.89586728]
[1737239421663,0.158,256.73,256.66,0.58437446]
[1737239422057,0.158,256.73,256.68,30.89586728]
[1737239422258,0.158,256.73,256.69,0.58425379]
[1737239422649,0.158,256.73,256.66,30.89586728]
[1737239423167,0.158,256.73,256.64,30.89586728]
[1737239423472,3.8952,256.72,256.62,30.89586728]
[1737239423967,31.05386728,256.71,256.6,30.89586728]
[1737239424368,0.158,256.71,256.61,0.58447938]
[1737239424558,31.05386728,256.71,256.61,0.58447938]
[1737239424954,30.89586728,256.69,256.61,0.58447938]
[1737239425158,30.89586728,256.63,256.55,0.063]
[1737239425355,3.8968,256.62,256.55,0.063]
[1737239425571,4.0548,256.62,256.55,0.063]
[1737239425947,30.89586728,256.57,256.55,0.063]
[1737239427150,3.8977,256.56,256.55,0.063]
[1737239431862,3.8974,256.58,256.55,0.063]
[1737239432065,0.158,256.6,256.55,0.063]
[1737239432066,4.0551,256.6,256.55,0.063]
[1737239433281,13.7978,256.6,256.55,0.063]
[1737239433571,13.7978,256.6,256.43,3.8995]
[1737239433572,30.89586728,256.57,256.45,30.89586728]
[1737239433781,30.89586728,256.54,256.43,30.89586728]
[1737239434568,30.89586728,256.48,256.38,0.063]
[1737239434771,30.89586728,256.46,256.38,0.063]
[1737239435170,30.89586728,256.44,256.38,0.063]
[1737239435356,5.0,256.57,256.38,0.063]
[1737239435556,30.89586728,256.5,256.39,30.89586728]
[1737239435759,30.89586728,256.48,256.38,0.063]
[1737239436078,30.89586728,256.46,256.38,0.063]
[1737239436767,30.89586728,256.44,256.38,0.063]
[1737239437392,3.8996,256.43,256.38,0.063]
[1737239438184,30.89586728,256.42,256.38,0.063]
[1737239438873,30.89586728,256.4,256.38,0.063]
[1737239439275,30.89586728,256.4,256.29,0.063]
[1737239439586,7.2077,256.42,256.29,0.063]
[1737239439587,30.89586728,256.33,256.29,0.063]
[1737239440163,30.89586728,256.31,256.29,0.063]
[1737239441585,3.9016,256.3,256.29,0.063]
[1737239441963,34.79716728,256.33,256.29,0.063]
[1737239442162,30.89586728,256.35,256.29,0.063]
[1737239443584,3.901,256.34,256.29,0.063]
[1737239444479,3.9008,256.36,256.29,30.95886728]
[1737239444683,3.9008,256.36,256.3,0.58512523]
[1737239445792,30.89586728,256.39,256.3,0.58512523]
[1737239445970,3.9004,256.38,256.3,0.58512523]
[1737239446386,34.79626728,256.38,256.3,0.58512523]
[1737239447773,3.9,256.41,256.3,0.58512523]
[1737239448074,44.54586728,256.41,256.31,30.89586728]
[1737239448274,44.54586728,256.41,256.32,0.58511605]
[1737239449488,3.8998,256.43,256.35,30.89586728]
[1737239449694,3.8998,256.43,256.36,0.58496334]
[1737239449990,3.8998,256.43,256.37,30.89586728]
[1737239450187,40.64296728,256.49,256.39,30.89586728]
[1737239450371,3.8989,256.48,256.4,0.58492197]
[1737239450771,23.3935,256.48,256.29,0.063]
[1737239450985,30.89586728,256.4,256.31,0.063]
[1737239451194,23.3935,256.48,256.31,31.54396028]
[1737239451195,30.89586728,256.42,256.31,31.54396028]